fUSD/lending_fUSD_20240620
["ID","MTS","AMOUNT","RATE_DAILY","PERIOD"]
[329965171,1718875850027,-518.27,0.00013972,2]
[329965172,1718875850035,-500.0,0.00013972,2]
[329965173,1718875850044,-554.83,0.00013972,2]
[329965174,1718875850054,-500.0,0.00013972,2]
[329965175,1718875850064,-687.34,0.00013972,2]
[329965176,1718875850073,-500.0,0.00013972,2]
[329965177,1718875850081,-350.27818204,0.00013972,2]
[329965178,1718875850090,-500.0,0.00013972,2]
[329965179,1718875850100,-519.15,0.00013972,2]
[329965180,1718875850109,-500.0,0.00013972,2]
[329965181,1718875850119,-2370.03,0.00013972,2]
[329965182,1718875850128,-1028.67,0.00013972,2]
[329965183,1718875850138,-500.0,0.00013972,2]
[329965184,1718875850147,-567.69,0.00013972,2]
[329965185,1718875850156,-728.07,0.00013972,2]
[329965186,1718875850166,-500.0,0.00013972,2]
[329965187,1718875850177,-500.0,0.00013972,2]
[329965188,1718875850186,-500.0,0.00013972,2]
[329965189,1718875850196,-500.0,0.00013972,2]
[329965190,1718875850207,-701.55,0.00013972,2]
[329965191,1718875850217,-500.0,0.00013972,2]
[329965192,1718875850227,-500.0,0.00013972,2]
[329965193,1718875850237,-668.6,0.00013972,2]
[329965194,1718875850246,-702.58,0.00013972,2]
[329965195,1718875850256,-520.46,0.00013972,2]
[329965196,1718875850266,-680.48,0.00013972,2]
[329965197,1718875850276,-500.0,0.00013972,2]
[329965198,1718875850285,-500.0,0.00013972,2]
[329965199,1718875850295,-500.0,0.00013972,2]
[329965200,1718875850304,-500.0,0.00013972,2]
[329965201,1718875850314,-500.0,0.00013972,2]
[329965202,1718875850323,-582.55,0.00013972,2]
[329965203,1718875850332,-500.0,0.00013972,2]
[329965204,1718875850341,-633.2,0.00013972,2]
[329965205,1718875850350,-588.88337706,0.00013972,2]
[329965206,1718875850360,-1036.4,0.00013972,2]
[329965207,1718875850369,-500.0,0.00013972,2]
[329965208,1718875850378,-500.0,0.00013972,2]
[329965209,1718875850388,-500.0,0.00013972,2]
[329965210,1718875850397,-500.0,0.00013972,2]
[329965211,1718875850406,-659.35,0.00013972,2]
[329965212,1718875850415,-643.99,0.00013972,2]
[329965213,1718875850424,-500.0,0.00013972,2]
[329965214,1718875850436,-826.09,0.00013972,2]
[329965215,1718875850444,-799.47,0.00013972,2]
[329965216,1718875850454,-500.0,0.00013972,2]
[329965217,1718875850464,-500.0,0.00013972,2]
[329965218,1718875850474,-500.0,0.00013972,2]
[329965219,1718875850483,-500.0,0.00013972,2]
[329965220,1718875850492,-500.0,0.00013972,2]
[329965221,1718875850502,-597.39,0.00013972,2]
[329965222,1718875850514,-500.0,0.00013972,2]
[329965223,1718875850523,-500.0,0.00013972,2]
[329965224,1718875850532,-500.0,0.00013972,2]
[329965225,1718875850541,-500.0,0.00013972,2]
[329965226,1718875850550,-500.0,0.00013972,2]
[329965227,1718875850559,-554.88,0.00013972,2]
[329965228,1718875850571,-1168.99,0.00013972,2]
[329965229,1718875850580,-500.0,0.00013972,2]
[329965230,1718875850589,-500.0,0.00013972,2]
[329965231,1718875850599,-619.32,0.00013972,2]
[329965232,1718875850609,-500.0,0.00013972,2]
[329965233,1718875850618,-278.716492,0.00013972,2]
[329965234,1718875850628,-500.0,0.00013972,2]
[329965235,1718875850637,-500.0,0.00013972,2]
[329965236,1718875850646,-500.0,0.00013972,2]
[329965237,1718875850656,-501.86,0.00013972,2]
[329965238,1718875850665,-521.89,0.00013972,2]
[329965239,1718875850675,-500.0,0.00013972,2]
[329965240,1718875850686,-151.0,0.00013972,2]
[329965241,1718875850695,-151.0,0.00013972,2]
[329965242,1718875850704,-151.0,0.00013972,2]
[329965243,1718875850714,-151.0,0.00013972,2]
[329965244,1718875850724,-500.0,0.00013972,2]
[329965245,1718875850733,-519.43,0.00013972,2]
[329965246,1718875850742,-500.0,0.00013972,2]
[329965247,1718875850751,-500.0,0.00013972,2]
[329965248,1718875850760,-500.0,0.00013972,2]
[329965249,1718875850770,-500.0,0.00013972,2]
[329965250,1718875850783,-500.0,0.00013972,2]
[329965251,1718875850792,-500.0,0.00013972,2]
[329965252,1718875850801,-1047.26,0.00013972,2]
[329965253,1718875850812,-500.0,0.00013972,2]
[329965254,1718875850822,-500.0,0.00013972,2]
[329965255,1718875850831,-528.42911585,0.00013972,2]
[329965256,1718875850840,-500.0,0.00013972,2]
[329965257,1718875850850,-765.21,0.00013972,2]
[329965258,1718875850859,-598.06,0.00013972,2]
[329965259,1718875850868,-500.0,0.00013972,2]
[329965260,1718875850878,-500.0,0.00013972,2]
[329965261,1718875850887,-500.0,0.00013972,2]
[329965262,1718875850896,-864.35,0.00013972,2]
[329965263,1718875850905,-500.0,0.00013972,2]
[329965264,1718875850915,-500.0,0.00013972,2]
[329965265,1718875850924,-500.0,0.00013972,2]
[329965266,1718875850935,-500.0,0.00013972,2]
[329965267,1718875850944,-500.0,0.00013972,2]
[329965268,1718875850953,-630.32,0.00013972,2]
[329965269,1718875850963,-500.0,0.00013972,2]
[329965270,1718875850972,-519.01,0.00013972,2]
[329965271,1718875850981,-500.0,0.00013972,2]
[329965272,1718875850992,-500.0,0.00013972,2]
[329965273,1718875851001,-500.0,0.00013972,2]
[329965274,1718875851010,-531.55,0.00013972,2]
[329965275,1718875851019,-597.48,0.00013972,2]
[329965276,1718875851029,-500.0,0.00013972,2]
[329965277,1718875851038,-579.3,0.00013972,2]
[329965278,1718875851046,-614.08,0.00013972,2]
[329965279,1718875851056,-500.0,0.00013972,2]
[329965280,1718875851066,-500.0,0.00013972,2]
[329965281,1718875851075,-500.0,0.00013972,2]
[329965282,1718875851084,-500.0,0.00013972,2]
[329965283,1718875851094,-500.0,0.00013972,2]
[329965284,1718875851104,-795.41,0.00013972,2]
[329965285,1718875851114,-500.0,0.00013972,2]
[329965286,1718875851123,-500.0,0.00013972,2]
[329965287,1718875851133,-546.77,0.00013972,2]
[329965288,1718875851142,-500.0,0.00013972,2]
[329965289,1718875851152,-500.0,0.00013972,2]
[329965290,1718875851162,-500.0,0.00013972,2]
[329965291,1718875851171,-500.0,0.00013972,2]
[329965292,1718875851181,-500.0,0.00013972,2]
[329965293,1718875851190,-603.0,0.00013972,2]
[329965294,1718875851199,-500.0,0.00013972,2]
[329965295,1718875851208,-500.0,0.00013972,2]
[329965296,1718875851217,-500.0,0.00013972,2]
[329965297,1718875851226,-500.0,0.00013972,2]
[329965298,1718875851236,-500.0,0.00013972,2]
[329965299,1718875851245,-500.0,0.00013972,2]
[329965300,1718875851254,-500.0,0.00013972,2]
[329965301,1718875851264,-593.71,0.00013972,2]
[329965302,1718875851273,-522.94,0.00013972,2]
[329965303,1718875851282,-500.0,0.00013972,2]
[329965304,1718875851292,-500.0,0.00013972,2]
[329965305,1718875851302,-500.0,0.00013972,2]
[329965306,1718875851311,-500.0,0.00013972,2]
[329965307,1718875851320,-581.38,0.00013972,2]
[329965308,1718875851330,-500.0,0.00013972,2]
[329965309,1718875851339,-500.0,0.00013972,2]
[329965310,1718875851347,-500.0,0.00013972,2]
[329965311,1718875851356,-500.0,0.00013972,2]
[329965312,1718875851366,-712.0,0.00013972,2]
[329965313,1718875851375,-2585.28,0.00013972,2]
[329965314,1718875851386,-500.0,0.00013972,2]
[329965315,1718875851396,-500.0,0.00013972,2]
[329965316,1718875851405,-5694.04,0.00013972,2]
[329965317,1718875851414,-2038.87,0.00013972,2]
[329965318,1718875851424,-1299.63,0.00013972,2]
[329965319,1718875851434,-500.0,0.00013972,2]
[329965320,1718875851444,-500.0,0.00013972,2]
[329965321,1718875851454,-200.37,0.00013972,2]
[329965322,1718875851463,-807.76,0.00013972,2]
[329965323,1718875851472,-500.0,0.00013972,2]
[329965324,1718875851482,-500.0,0.00013972,2]
[329965325,1718875851491,-3580.18,0.00013972,2]
[329965326,1718875851500,-500.0,0.00013972,2]
[329965327,1718875851509,-500.0,0.00013972,2]
[329965328,1718875851521,-500.0,0.00013972,2]
[329965329,1718875851530,-3180.43,0.00013972,2]
[329965330,1718875851539,-2870.56,0.00013972,2]
[329965331,1718875851549,-505.44,0.00013972,2]
[329965332,1718875851558,-500.0,0.00013972,2]
[329965333,1718875851567,-3152.68,0.00013972,2]
[329965334,1718875851576,-1239.24,0.00013972,2]
[329965335,1718875851584,-500.0,0.00013972,2]
[329965336,1718875851593,-500.0,0.00013972,2]
[329965337,1718875851603,-529.26,0.00013972,2]
[329965338,1718875851611,-781.96,0.00013972,2]
[329965339,1718875851620,-500.0,0.00013972,2]
[329965340,1718875851630,-518.55,0.00013972,2]
[329965341,1718875851639,-500.0,0.00013972,2]
[329965342,1718875851648,-4679.83,0.00013972,2]
[329965343,1718875851657,-500.0,0.00013972,2]
[329965344,1718875851667,-500.0,0.00013972,2]
[329965345,1718875851676,-910.16,0.00013972,2]
[329965346,1718875851685,-8316.3,0.00013972,2]
[329965347,1718875851694,-4563.89,0.00013972,2]
[329965348,1718875851704,-550.22,0.00013972,2]
[329965349,1718875851713,-5243.78,0.00013972,2]
[329965350,1718875851722,-500.0,0.00013972,2]
[329965351,1718875851732,-876.34,0.00013972,2]
[329965352,1718875851741,-500.0,0.00013972,2]
[329965353,1718875851750,-3085.65,0.00013972,2]
[329965354,1718875851759,-584.53,0.00013972,2]
[329965355,1718875851769,-2394.8,0.00013972,2]
[329965356,1718875851778,-12675.0,0.00013972,2]
[329965357,1718875851787,-763.72,0.00013972,2]
[329965358,1718875851796,-500.0,0.00013972,2]
[329965359,1718875851807,-151.0,0.00013972,2]
[329965360,1718875851818,-151.0,0.00013972,2]
[329965361,1718875851828,-151.0,0.00013972,2]
[329965362,1718875851837,-151.0,0.00013972,2]
[329965363,1718875851846,-500.0,0.00013972,2]
[329965364,1718875851855,-500.0,0.00013972,2]
[329965365,1718875851864,-1502.16,0.00013972,2]
[329965366,1718875851874,-500.0,0.00013972,2]
[329965367,1718875851883,-1536.39,0.00013972,2]
[329965368,1718875851893,-580.67,0.00013972,2]
[329965369,1718875851902,-2036.52,0.00013972,2]
[329965370,1718875851913,-500.0,0.00013972,2]
[329965371,1718875851922,-500.0,0.00013972,2]
[329965372,1718875851931,-151.0,0.00013972,2]
[329965373,1718875851940,-151.0,0.00013972,2]
[329965374,1718875851949,-500.0,0.00013972,2]
[329965375,1718875851958,-151.0,0.00013972,2]
[329965376,1718875851967,-151.0,0.00013972,2]
[329965377,1718875851977,-2176.83,0.00013972,2]
[329965378,1718875851986,-500.0,0.00013972,2]
[329965379,1718875851995,-500.0,0.00013972,2]
[329965380,1718875852004,-1427.12,0.00013972,2]
[329965381,1718875852014,-500.0,0.00013972,2]
[329965382,1718875852023,-500.0,0.00013972,2]
[329965383,1718875852032,-1874.15,0.00013972,2]
[329965384,1718875852041,-1885.2,0.00013972,2]
[329965385,1718875852051,-500.0,0.00013972,2]
[329965386,1718875852060,-979.35,0.00013972,2]
[329965387,1718875852071,-500.0,0.00013972,2]
[329965388,1718875852080,-3062.3,0.00013972,2]
[329965389,1718875852089,-500.0,0.00013972,2]
[329965390,1718875852100,-911.43,0.00013972,2]
[329965391,1718875852109,-2359.08,0.00013972,2]
[329965392,1718875852118,-705.16,0.00013972,2]
[329965393,1718875852127,-8286.42,0.00013972,2]
[329965394,1718875852137,-500.0,0.00013972,2]
[329965395,1718875852147,-1293.91,0.00013972,2]
[329965396,1718875852156,-500.0,0.00013972,2]
[329965397,1718875852165,-579.49,0.00013972,2]
[329965398,1718875852175,-869.39,0.00013972,2]
[329965399,1718875852184,-792.09,0.00013972,2]
[329965400,1718875852193,-500.0,0.00013972,2]
[329965401,1718875852202,-151.0,0.00013972,2]
[329965402,1718875852211,-151.0,0.00013972,2]
[329965403,1718875852222,-151.0,0.00013972,2]
[329965404,1718875852231,-235.337553,0.00013972,2]
[329965405,1718875852240,-516.3,0.00013972,2]
[329965406,1718875852249,-500.0,0.00013972,2]
[329965407,1718875852259,-3111.5,0.00013972,2]
[329965408,1718875852268,-500.0,0.00013972,2]
[329965409,1718875852278,-500.0,0.00013972,2]
[329965410,1718875852287,-1181.09,0.00013972,2]
[329965411,1718875852296,-12771.8,0.00013972,2]
[329965412,1718875852305,-550.42,0.00013972,2]
[329965413,1718875852315,-3542.52,0.00013972,2]
[329965414,1718875852323,-500.0,0.00013972,2]
[329965415,1718875852333,-1829.94,0.00013972,2]
[329965416,1718875852342,-1233.38,0.00013972,2]
[329965417,1718875852352,-770.6,0.00013972,2]
[329965418,1718875852362,-995.93,0.00013972,2]
[329965419,1718875852371,-783.56,0.00013972,2]
[329965420,1718875852380,-500.0,0.00013972,2]
[329965421,1718875852390,-500.0,0.00013972,2]
[329965422,1718875852399,-1952.09,0.00013972,2]
[329965423,1718875852409,-500.0,0.00013972,2]
[329965424,1718875852418,-1582.91,0.00013972,2]
[329965425,1718875852428,-500.0,0.00013972,2]
[329965426,1718875852442,-21295.49,0.00013972,2]
[329965427,1718875852452,-151.0,0.00013972,2]
[329965428,1718875852461,-3260.05,0.00013972,2]
[329965429,1718875852471,-151.0,0.00013972,2]
[329965430,1718875852480,-713.53,0.00013972,2]
[329965431,1718875852622,-3476.89,0.00013972,2]
[329965432,1718875852636,-1807.03,0.00013972,2]
[329965433,1718875852646,-500.0,0.00013972,2]
[329965434,1718875852655,-500.0,0.00013972,2]
[329965435,1718875852665,-500.0,0.00013972,2]
[329965436,1718875852675,-2832.09,0.00013972,2]
[329965437,1718875852684,-500.0,0.00013972,2]
[329965438,1718875852693,-674.14,0.00013972,2]
[329965439,1718875852703,-288.309338,0.00013972,2]
[329965440,1718875852712,-3295.72,0.00013972,2]
[329965441,1718875852721,-500.0,0.00013972,2]
[329965442,1718875852731,-151.0,0.00013972,2]
[329965443,1718875852741,-151.0,0.00013972,2]
[329965444,1718875852749,-151.0,0.00013972,2]
[329965445,1718875852758,-500.0,0.00013972,2]
[329965446,1718875852768,-500.0,0.00013972,2]
[329965447,1718875852777,-151.0,0.00013972,2]
[329965448,1718875852787,-852.53,0.00013972,2]
[329965449,1718875852796,-500.0,0.00013972,2]
[329965450,1718875852805,-959.66,0.00013972,2]
[329965451,1718875852816,-823.46,0.00013972,2]
[329965452,1718875852825,-500.0,0.00013972,2]
[329965453,1718875852834,-500.0,0.00013972,2]
[329965454,1718875852843,-4339.56,0.00013972,2]
[329965455,1718875852852,-1422.09,0.00013972,2]
[329965456,1718875852862,-630.23,0.00013972,2]
[329965457,1718875852871,-369.244224,0.00013972,2]
[329965458,1718875852881,-3828.79,0.00013972,2]
[329965459,1718875852890,-1503.78,0.00013972,2]
[329965460,1718875852899,-500.0,0.00013972,2]
[329965461,1718875852910,-369.244224,0.00013972,2]
[329965462,1718875852919,-4480.42,0.00013972,2]
[329965463,1718875852929,-369.244224,0.00013972,2]
[329965464,1718875852939,-369.244224,0.00013972,2]
[329965465,1718875852948,-500.0,0.00013972,2]
[329965466,1718875852958,-1245.7,0.00013972,2]
[329965467,1718875852967,-635.03,0.00013972,2]
[329965468,1718875852976,-369.244224,0.00013972,2]
[329965469,1718875852985,-369.244224,0.00013972,2]
[329965470,1718875852995,-369.244224,0.00013972,2]
[329965471,1718875853004,-369.24423,0.00013972,2]
[329965472,1718875853013,-500.0,0.00013972,2]
[329965473,1718875853022,-737.21,0.00013972,2]
[329965474,1718875853032,-4449.76,0.00013972,2]
[329965475,1718875853041,-500.0,0.00013972,2]
[329965476,1718875853050,-5928.78,0.00013972,2]
[329965477,1718875853059,-781.47,0.00013972,2]
[329965478,1718875853069,-2407.64,0.00013972,2]
[329965479,1718875853079,-500.0,0.00013972,2]
[329965480,1718875853088,-500.0,0.00013972,2]
[329965481,1718875853097,-2050.94,0.00013972,2]
[329965482,1718875853106,-500.0,0.00013972,2]
[329965483,1718875853116,-3273.45,0.00013972,2]
[329965484,1718875853125,-350.27944778,0.00013972,2]
[329965485,1718875853134,-1656.8,0.00013972,2]
[329965486,1718875853143,-733.32,0.00013972,2]
[329965487,1718875853153,-615.25,0.00013972,2]
[329965488,1718875853162,-574.68392603,0.00013972,2]
[329965489,1718875853171,-9517.35,0.00013972,2]
[329965490,1718875853180,-500.0,0.00013972,2]
[329965491,1718875853190,-1659.65,0.00013972,2]
[329965492,1718875853199,-3071.66,0.00013972,2]
[329965493,1718875853208,-500.0,0.00013972,2]
[329965494,1718875853218,-500.0,0.00013972,2]
[329965495,1718875853227,-500.0,0.00013972,2]
[329965496,1718875853236,-500.0,0.00013972,2]
[329965497,1718875853245,-7255.75,0.00013972,2]
[329965498,1718875853255,-5890.98,0.00013972,2]
[329965499,1718875853264,-500.0,0.00013972,2]
[329965500,1718875853274,-585.85,0.00013972,2]
[329965501,1718875853283,-17139.58,0.00013972,2]
[329965502,1718875853293,-2718.82,0.00013972,2]
[329965503,1718875853302,-500.0,0.00013972,2]
[329965504,1718875853311,-500.0,0.00013972,2]
[329965505,1718875853322,-500.0,0.00013972,2]
[329965506,1718875853331,-3068.85,0.00013972,2]
[329965507,1718875853341,-2485.18,0.00013972,2]
[329965508,1718875853351,-4477.3,0.00013972,2]
[329965509,1718875853361,-629.25,0.00013972,2]
[329965510,1718875853370,-500.0,0.00013972,2]
[329965511,1718875853381,-500.0,0.00013972,2]
[329965512,1718875853392,-500.0,0.00013972,2]
[329965513,1718875853401,-500.0,0.00013972,2]
[329965514,1718875853410,-1390.31,0.00013972,2]
[329965515,1718875853419,-2251.41,0.00013972,2]
[329965516,1718875853429,-3553.84,0.00013972,2]
[329965517,1718875853444,-1061.62,0.00013972,2]
[329965518,1718875853453,-4322.8,0.00013972,2]
[329965519,1718875853464,-500.0,0.00013972,2]
[329965520,1718875853474,-1476.49,0.00013972,2]
[329965521,1718875853483,-903.0,0.00013972,2]
[329965522,1718875853493,-3356.07058192,0.00013972,2]
[329965523,1718875853930,-73.41941808,0.00013972,2]
[329965524,1718875853939,-402.25317233,0.00013972,2]
[329965525,1718875853950,-1644.85682767,0.00013972,2]
[329965526,1718875853961,-500.0,0.00013972,2]
[329965527,1718875853970,-500.0,0.00013972,2]
[329965528,1718875853979,-743.21011948,0.00013972,2]
[329965529,1718875854994,-1069.02857438,0.00013697,2]
[329965530,1718875855004,-195.62200417,0.00013697,2]
[329965531,1718875855021,-347.93156088,0.00013697,2]
[329965532,1718875855031,-467.944321,0.00013698,2]
[329965533,1718875855042,-467.944321,0.00013698,2]
[329965534,1718875855052,-467.944321,0.00013698,2]
[329965535,1718875855063,-467.944321,0.00013698,2]
[329965536,1718875855078,-3416.42,0.00013698,2]
[329965537,1718875855089,-467.944321,0.00013698,2]
[329965538,1718875855099,-467.944321,0.00013872,2]
[329965539,1718875855110,-1452.41988052,0.00013972,2]
[329965540,1718875855120,-1381.82,0.00013972,2]
[329965541,1718875855131,-500.0,0.00013972,2]
[329965542,1718875855142,-844.15,0.00013972,2]
[329965543,1718875855153,-832.31,0.00013972,2]
[329965544,1718875855164,-500.0,0.00013972,2]
[329965545,1718875855175,-500.0,0.00013972,2]
[329965546,1718875855186,-1405.62,0.00013972,2]
[329965547,1718875855197,-1029.71,0.00013972,2]
[329965548,1718875855208,-1199.62,0.00013972,2]
[329965549,1718875855220,-2911.88,0.00013972,2]
[329965550,1718875855231,-7560.22,0.00013972,2]
[329965551,1718875855242,-2167.31,0.00013972,2]
[329965552,1718875855253,-500.0,0.00013972,2]
[329965553,1718875855263,-2924.15901718,0.00013972,2]
[329965554,1718875855277,-553.22115253,0.00013972,2]
[329965555,1718875855289,-562.08983029,0.00013972,2]
[329965556,1718875855299,-711.04239763,0.00013972,2]
[329965557,1718875855312,-112.24760237,0.00013972,2]
[329965558,1718875855332,-146.29805192,0.00013972,2]
[329965559,1718875855345,-1789.54194808,0.00013972,2]
[329965560,1718875855355,-500.0,0.00013972,2]
[329965561,1718875855366,-53.8256404,0.00013972,2]
[329965562,1718875855378,-283.2823812,0.00013972,2]
[329965563,1718875855454,-300.69059572,0.00013697,2]
[329965564,1718875855466,-292.07552568,0.00013697,2]
[329965565,1718875855478,-162.8919784,0.00013972,2]
[329965566,1718875855488,-1713.12,0.00013972,2]
[329965567,1718875855499,-500.0,0.00013972,2]
[329965568,1718875855511,-500.0,0.00013972,2]
[329965569,1718875855522,-500.0,0.00013972,2]
[329965570,1718875855532,-3005.78,0.00013972,2]
[329965571,1718875855542,-174.2419002,0.00013972,2]
[329965572,1718875855554,-602.34,0.00013972,2]
[329965573,1718875855570,-335.30570427,0.00013972,2]
[329965574,1718875855582,-131.69239553,0.00013972,2]
[329965575,1718875855592,-500.0,0.00013972,2]
[329965576,1718875855602,-85.4315468,0.00013972,2]
[329965577,1718875855614,-497.36604907,0.00013972,2]
[329965578,1718875855624,-500.0,0.00013972,2]
[329965579,1718875855633,-778.59,0.00013972,2]
[329965580,1718875855644,-500.0,0.00013972,2]
[329965581,1718875855655,-748.77,0.00013972,2]
[329965582,1718875855665,-968.76,0.00013972,2]
[329965583,1718875855676,-1940.2,0.00013972,2]
[329965584,1718875855687,-2147.71,0.00013972,2]
[329965585,1718875855697,-500.0,0.00013972,2]
[329965586,1718875855707,-1853.44,0.00013972,2]
[329965587,1718875855716,-704.29,0.00013972,2]
[329965588,1718875855726,-631.0,0.00013972,2]
[329965589,1718875855736,-661.49,0.00013972,2]
[329965590,1718875855746,-500.0,0.00013972,2]
[329965591,1718875855757,-1799.68,0.00013972,2]
[329965592,1718875855767,-500.0,0.00013972,2]
[329965593,1718875855777,-500.0,0.00013972,2]
[329965594,1718875855787,-852.75,0.00013972,2]
[329965595,1718875855796,-467.944321,0.00013972,2]
[329965596,1718875855807,-151.0,0.00013972,2]
[329965597,1718875855818,-151.0,0.00013972,2]
[329965598,1718875855828,-467.944321,0.00013972,2]
[329965599,1718875855837,-151.0,0.00013972,2]
[329965600,1718875855846,-467.944321,0.00013972,2]
[329965601,1718875855855,-151.0,0.00013972,2]
[329965602,1718875855865,-467.944321,0.00013972,2]
[329965603,1718875855875,-500.0,0.00013972,2]
[329965604,1718875855885,-3416.42,0.00013972,2]
[329965605,1718875855895,-467.944321,0.00013972,2]
[329965606,1718875855905,-467.944321,0.00013972,2]
[329965607,1718875855915,-2000.0,0.00013973,2]
[329965608,1718875855925,-200.0,0.00013973,2]
[329965609,1718875855936,-500.0,0.0001398,2]
[329965610,1718875855946,-500.0,0.0001398,2]
[329965611,1718875855956,-500.0,0.0001398,2]
[329965612,1718875855966,-44.04894512,0.0001398,2]
[329965613,1718875856013,299.83014113,0.00010561,2]
[329965614,1718875856027,-455.95105488,0.0001398,2]
[329965615,1718875856040,-500.0,0.0001398,2]
[329965616,1718875856067,-500.0,0.0001398,2]
[329965617,1718875856115,-500.0,0.0001398,2]
[329965618,1718875856131,-187.62115012,0.0001398,2]
[329965619,1718875856143,-312.37884988,0.0001398,2]
[329965620,1718875856153,-500.0,0.0001398,2]
[329965621,1718875856163,-500.0,0.0001398,2]
[329965622,1718875856173,-388.77115012,0.0001398,2]
[329965623,1718875856185,-111.22884988,0.0001398,2]
[329965624,1718875856195,-500.0,0.0001398,2]
[329965625,1718875856204,-500.0,0.0001398,2]
[329965626,1718875856214,-100.2243444,0.0001398,2]
[329965627,1718875856226,-399.7756556,0.0001398,2]
[329965628,1718875856236,-277.80022115,0.0001398,2]
[329965629,1718875871678,684.0,0.00010561,2]
[329965630,1718875900760,508.01,0.00010654,2]
[329965634,1718875967146,6741.28233833,0.00010654,2]
[329965641,1718876502782,482.6,0.00010203,2]
[329965742,1718877031674,-474.21030632,0.00010613,2]
[329965743,1718877031686,-155.0,0.00010614,2]
[329965744,1718877031696,-943.70873254,0.00010614,2]
[329965745,1718877031705,-362.31322423,0.00010643,2]
[329965746,1718877031717,-455.84,0.00010643,2]
[329965747,1718877031728,-474.37904849,0.00010643,2]
[329965748,1718877031740,-1026.39824093,0.00010643,2]
[329965749,1718877031752,-4809.55380326,0.00010643,2]
[329965754,1718877031831,-309.20737586,0.00010643,2]
[329965755,1718877031845,-2553.17372,0.00010643,2]
[329965756,1718877031860,-541.86796431,0.00010643,2]
[329965757,1718877031870,-243.11726026,0.00010644,2]
[329965758,1718877031883,-462.13788145,0.00010644,2]
[329965759,1718877031892,-150.0,0.00010652,2]
[329965760,1718877031901,-966.4196867,0.00010654,2]
[329965761,1718877031912,-32327.05761708,0.00010654,2]
[329965762,1718877031925,-150.0,0.00010904,2]
[329965763,1718877031934,-10021.2407,0.00010933,2]
[329965764,1718877031943,-150.99,0.00010933,2]
[329965765,1718877031952,-250.0,0.00012015,2]
[329965766,1718877031961,-1206.59,0.00012015,2]
[329965767,1718877031970,-23890.0,0.00012018,2]
[329965768,1718877031979,-500.0,0.00012025,2]
[329965769,1718877031988,-250.0,0.00012027,2]
[329965770,1718877031997,-2336.69,0.00012032,2]
[329965772,1718877032007,-1000.0,0.00012044,2]
[329965774,1718877032016,-2000.0,0.00012063,3]
[329965775,1718877032026,-188.21,0.00012116,2]
[329965778,1718877032035,-154.62,0.00012148,2]
[329965780,1718877032044,-165.26,0.00012174,2]
[329965781,1718877032053,-154.62,0.00012306,2]
[329965783,1718877032062,-154.62,0.00012464,2]
[329965785,1718877032072,-482.6,0.00012467,2]
[329965787,1718877032082,-373.3922,0.00012523,2]
[329965788,1718877032091,-154.62,0.00012623,2]
[329965789,1718877032100,-154.62,0.00012781,2]
[329965790,1718877032110,-3505.79860126,0.00013,2]
[329965791,1718877032120,-223.29,0.00013214,2]